bitfinex-derivatives/quotes_ETHF0:USTF0_20210403
["timestamp","ask_amount","ask_price","bid_price","bid_amount"]
[1617465389511,7.25535,2077.7,2076.3,5.01448517]
[1617465389912,4.3484,2077.7,2076.4,2.90695]
[1617465391812,2.90695,2076.5,2076.4,2.90695]
[1617465393916,2.1917,2077.1,2076.1,2.90695]
[1617465394115,4.7627,2077.1,2076.1,2.90695]
[1617465394717,2.0,2077.0,2075.8,5.00971679]
[1617465395118,2.0,2077.0,2075.7,5.01005227]
[1617465395417,4.7627,2077.1,2075.7,5.01005227]
[1617465395621,2.571,2077.1,2075.7,5.01005227]
[1617465395920,2.571,2077.1,2076.1,2.90695]
[1617465396524,2.571,2077.1,2076.2,5.00946388]
[1617465397024,2.571,2077.1,2076.3,5.00936663]
[1617465397230,2.571,2077.1,2076.3,6.87116663]
[1617465397827,2.90695,2076.5,2076.4,5.00924124]
[1617465398927,2.90695,2076.5,2076.3,5.00970225]
[1617465399328,2.90695,2076.5,2076.1,7.91704782]
[1617465399533,2.90695,2076.5,2076.0,5.01012783]
[1617465400028,2.90695,2076.1,2076.0,5.01012783]
[1617465400928,5.36275,2076.1,2076.0,5.01012783]
[1617465401130,5.36275,2076.1,2075.7,2.90695]
[1617465401131,5.36275,2076.1,2075.9,5.01035812]
[1617465401830,2.90695,2076.1,2075.9,5.01035812]
[1617465402932,2.90695,2076.1,2075.8,5.01048481]
[1617465403733,2.90695,2076.1,2075.7,5.0106281]
[1617465403932,2.90695,2075.8,2075.7,5.0106281]
[1617465404134,2.90695,2075.8,2075.6,5.01077367]
[1617465405536,2.90695,2075.8,2075.4,5.00349952]
[1617465405937,2.90695,2075.5,2075.4,5.00349952]
[1617465407537,2.90695,2075.5,2075.3,2.90695]
[1617465407538,2.90695,2075.5,2075.3,9.02222171]
[1617465407738,2.0,2076.8,2075.3,9.02222171]
[1617465407938,2.0,2076.8,2076.0,2.90695]
[1617465408139,2.0,2076.8,2076.0,5.34115]
[1617465408341,2.0,2077.0,2076.0,5.34115]
[1617465410045,2.90695,2076.1,2076.0,5.34115]
[1617465414548,2.90695,2076.1,2076.0,2.90695]
[1617465415549,2.90695,2076.1,2076.0,7.91752075]
[1617465416350,2.90695,2076.1,2076.0,2.90695]
[1617465417150,2.90695,2076.1,2076.0,3.08100173]
[1617465419351,2.90695,2076.1,2076.0,10.32208133]
[1617465420453,2.90695,2076.1,2076.0,3.08100173]
[1617465420651,2.571,2077.1,2076.0,3.08100173]
[1617465420951,2.571,2077.1,2076.0,10.32209042]
[1617465421152,2.571,2077.1,2076.1,0.17509963]
[1617465421352,2.571,2077.1,2076.7,5.01303014]
[1617465421952,2.571,2077.1,2076.8,0.17509371]
[1617465422152,2.90695,2076.9,2076.8,0.17509371]
[1617465422353,4.90355,2076.9,2076.7,0.17510999]
[1617465422654,4.90355,2076.9,2076.8,0.17513277]
[1617465423255,6.90355,2076.9,2076.6,0.17516041]
[1617465423455,6.90355,2076.9,2076.8,0.1751609]
[1617465423855,6.90355,2076.9,2076.4,0.17516173]
[1617465424055,2.90695,2076.5,2076.4,0.17516173]
[1617465424655,4.90695,2076.5,2076.4,0.17516173]
[1617465427159,4.90695,2076.5,2076.3,0.17517856]
[1617465427357,4.90695,2076.5,2076.2,7.2663882]
[1617465427358,4.90695,2076.5,2076.4,0.17517916]
[1617465427558,4.90695,2076.5,2076.3,0.17518086]
[1617465430367,4.90695,2076.5,2076.4,6.14936178]
[1617465430866,4.90695,2076.5,2076.4,6.32457462]
[1617465432869,4.90695,2076.5,2076.4,0.17521284]
[1617465433069,4.90695,2076.5,2076.4,6.32464991]
[1617465433570,4.90695,2076.5,2076.4,0.17521284]
[1617465434572,2.90695,2076.5,2076.4,0.17521284]
[1617465434770,2.90695,2076.5,2076.1,7.2673005]
[1617465434771,2.90695,2076.5,2076.2,0.17509579]
[1617465435070,2.90695,2076.5,2076.4,0.17509384]
[1617465435271,2.90695,2076.5,2076.3,1.70799451]
[1617465435771,2.90695,2076.5,2076.4,0.1750851]
[1617465436674,2.90695,2076.5,2076.4,7.44404392]
[1617465437473,2.90695,2076.5,2076.4,0.1750851]
[1617465438175,2.90695,2076.5,2076.4,3.0820351]
[1617465438475,2.90695,2076.5,2076.4,11.48088077]
[1617465438876,2.90695,2076.5,2076.4,3.0820351]
[1617465439179,2.90695,2076.5,2076.4,11.48067651]
[1617465439576,2.90695,2076.5,2076.4,3.0820351]
[1617465439876,2.0,2078.0,2076.4,3.0820351]
[1617465440277,2.0,2078.0,2077.5,5.03903148]
[1617465440778,2.0,2078.0,2077.6,0.17509359]
[1617465440978,2.0,2078.0,2077.6,5.21402221]
[1617465441378,2.0,2078.0,2077.7,5.21386174]
[1617465441779,2.0,2078.0,2077.7,5.0387838]
[1617465442278,2.90695,2077.8,2077.7,5.0387838]
[1617465442680,2.90695,2077.8,2077.7,5.21386034]
[1617465443579,2.90695,2077.8,2077.7,0.17507654]
[1617465444079,1.40695,2078.0,2077.7,0.17507654]
[1617465444281,4.3139,2077.8,2077.6,0.17558963]
[1617465444482,4.3139,2077.8,2077.5,5.03901971]
[1617465444880,4.3139,2077.8,2077.6,5.21460141]
[1617465445080,4.3139,2077.8,2077.7,0.17557884]
[1617465447682,4.3139,2077.8,2077.7,5.21749507]
[1617465447982,4.3139,2077.8,2077.7,0.17557884]
[1617465448881,4.3139,2077.8,2077.6,0.17554008]
[1617465449981,4.3139,2077.8,2077.5,8.61484065]
[1617465450185,4.3139,2077.8,2077.7,0.17553584]
[1617465450483,4.3139,2077.8,2077.6,0.17554318]
[1617465451282,4.3139,2077.8,2077.7,7.31436355]
[1617465451481,4.3139,2077.8,2077.7,7.48992018]
[1617465451684,4.3139,2077.8,2077.7,0.17555663]
[1617465452083,4.3139,2077.8,2077.7,7.31456542]
[1617465452482,4.3139,2077.8,2076.4,13.59746869]
[1617465452483,4.3139,2077.8,2077.6,7.31471102]
[1617465452883,4.3139,2077.8,2077.7,7.31473067]
[1617465453884,4.3139,2077.8,2077.6,7.31496628]
[1617465454385,34.3139,2077.8,2077.5,7.31509532]
[1617465454984,34.3139,2077.8,2077.4,7.31509017]
[1617465455686,34.3139,2077.8,2077.3,7.31524677]
[1617465456087,34.3139,2077.8,2077.4,7.49080077]
[1617465456286,2.90695,2077.5,2077.4,7.49080077]
[1617465456487,4.3139,2077.5,2077.4,7.3151786]
[1617465456687,4.3139,2077.5,2077.4,7.49078971]
[1617465457088,4.3139,2077.5,2077.4,0.17561111]
[1617465457689,4.3139,2077.5,2077.1,0.17561431]
[1617465457890,4.3139,2077.5,2077.4,7.31516829]
[1617465458392,4.3139,2077.5,2077.4,7.4907868]
[1617465459393,4.3139,2077.5,2077.4,0.17561851]
[1617465459795,4.3139,2077.5,2077.2,0.17567373]
[1617465459993,4.3139,2077.5,2077.4,0.17567387]
[1617465460392,4.3139,2077.5,2077.0,8.44233621]
[1617465460393,4.3139,2077.5,2077.1,0.1756754]
[1617465460894,4.3139,2077.5,2077.1,8.61803456]
[1617465461395,4.3139,2077.5,2077.2,0.17567498]
[1617465462095,4.3139,2077.5,2077.1,0.17568598]
[1617465462396,4.3139,2077.5,2077.4,7.31695281]
[1617465462595,4.3139,2077.5,2077.3,7.31588225]
[1617465462895,30.0,2077.4,2077.3,7.31588225]
[1617465463196,31.40695,2077.4,2077.3,5.91119694]
[1617465463495,31.40695,2077.4,2077.3,5.73548225]
[1617465463696,31.40695,2077.4,2076.8,8.44180593]
[1617465463895,31.40695,2077.4,2077.3,6.19127409]
[1617465464095,31.40695,2077.4,2076.5,8.44264649]
[1617465464297,31.40695,2077.4,2076.1,9.56833269]
[1617465464595,1.40695,2076.5,2075.7,9.56910489]
[1617465464795,1.40695,2076.5,2076.2,0.17580956]
[1617465465196,1.40695,2076.5,2075.3,10.69488194]
[1617465465197,1.40695,2076.5,2075.8,9.74485606]
[1617465465496,1.40695,2076.5,2075.9,0.17577918]
[1617465466398,2.90695,2076.0,2075.9,0.17577918]
[1617465466599,5.19585,2076.0,2075.9,0.17577918]
[1617465466901,5.19585,2076.0,2075.8,0.17567594]
[1617465467604,5.19585,2076.0,2075.7,0.17568001]
[1617465467803,2.90695,2076.0,2075.7,0.17568001]
[1617465468406,2.90695,2076.0,2075.7,9.7451824]
[1617465469006,2.90695,2076.0,2075.8,0.17566871]
[1617465469507,2.90695,2076.0,2075.8,9.74488505]
[1617465469907,2.90695,2076.0,2075.9,0.17512305]
[1617465470211,2.90695,2076.0,2075.6,9.554711]
[1617465470212,2.90695,2076.0,2075.7,0.17512415]
[1617465471309,2.90695,2076.0,2075.6,0.17511769]
[1617465471710,2.90695,2076.0,2075.7,9.55441908]
[1617465472009,2.90695,2076.0,2075.8,0.17512557]
[1617465472609,2.90695,2076.0,2075.7,0.17513749]
[1617465472910,2.90695,2076.0,2075.6,0.17512576]
[1617465473109,2.90695,2076.0,2075.6,9.72965577]
[1617465473510,2.90695,2076.0,2075.7,0.17508454]
[1617465473710,2.90695,2076.0,2075.7,2.65248454]
[1617465473911,2.90695,2076.0,2075.7,13.3430642]
[1617465474111,2.90695,2076.0,2075.8,0.17507907]
[1617465475013,2.90695,2076.0,2075.7,0.17509802]
[1617465475211,2.90695,2076.0,2075.9,0.17510954]
[1617465475413,2.90695,2076.0,2075.9,9.74101141]
[1617465475612,2.90695,2076.0,2075.8,9.5661622]
[1617465475913,2.90695,2076.0,2075.9,0.17512186]
[1617465479516,2.90695,2076.0,2075.9,0.17510866]
[1617465480214,2.90695,2076.0,2075.8,0.17511577]
[1617465480715,2.90695,2076.0,2075.9,0.17511479]
[1617465481014,2.90695,2076.0,2075.8,0.17511438]
[1617465481714,1.40695,2075.9,2075.7,0.17499136]
[1617465482714,1.40695,2075.9,2075.6,0.17500062]
[1617465483614,1.40695,2075.9,2075.6,9.73411221]
[1617465484016,1.40695,2075.9,2075.6,0.17500062]
[1617465484215,1.40695,2075.9,2075.7,0.17499747]
[1617465484816,1.40695,2075.9,2075.6,0.17500761]
[1617465486520,1.40695,2075.9,2075.8,8.43525941]
[1617465486720,1.8551,2076.1,2075.8,8.43525941]
[1617465487020,1.8551,2076.1,2075.8,6.74339102]
[1617465487423,1.40695,2076.3,2075.9,0.1754275]
[1617465487922,1.40695,2076.3,2076.2,7.31061191]
[1617465488124,1.40695,2076.3,2075.4,9.55999617]
[1617465488323,88.73695,2076.2,2076.1,6.18788478]
[1617465488525,93.4882,2076.2,2076.1,6.18788478]
[1617465488823,93.4882,2076.2,2073.8,11.2506996]
[1617465488824,93.4882,2076.2,2075.4,5.05373309]
[1617465489123,93.4882,2076.2,2073.9,9.54594027]
[1617465489124,93.4882,2076.2,2075.3,5.05388915]
[1617465489524,93.4882,2076.2,2075.3,3.12868915]
[1617465489725,93.4882,2076.2,2075.3,2.65108915]
[1617465489925,93.4882,2076.2,2073.6,9.54770989]
[1617465490526,2.90695,2073.2,2073.1,9.54968713]
[1617465490727,2.90695,2073.2,2073.0,9.54999143]
[1617465491129,2.90695,2073.2,2072.9,9.55031136]
[1617465493030,3.86085,2073.2,2072.9,9.55031136]
[1617465493329,2.90695,2073.2,2073.0,0.17222155]
[1617465494531,2.90695,2073.2,2072.9,0.17223284]
[1617465494933,2.90695,2073.2,2072.8,9.72313016]
[1617465495136,2.90695,2073.2,2073.0,0.17224776]
[1617465495334,4.3139,2073.2,2073.0,0.17224776]
[1617465495635,34.3139,2073.2,2072.8,0.1722723]
[1617465496034,34.3139,2073.2,2072.5,9.54847748]
[1617465496235,34.3139,2073.2,2072.1,9.54949511]
[1617465496537,32.90695,2073.2,2072.0,9.5500135]
[1617465496737,2.90695,2072.2,2072.0,9.5500135]
[1617465497336,2.90695,2072.2,2071.9,9.54977215]
[1617465497635,2.90695,2072.2,2071.6,2.90695]
[1617465497636,2.90695,2072.2,2072.0,9.54963238]
[1617465500040,2.90695,2072.2,2071.6,13.5801586]
[1617465500041,2.90695,2072.2,2071.6,2.90695]
[1617465500642,2.90695,2071.7,2071.1,5.0179198]
[1617465501045,2.90695,2071.7,2070.8,5.01871628]
[1617465501344,2.90695,2071.7,2070.7,5.0193108]
[1617465501743,2.90695,2071.7,2070.5,6.1347132]
[1617465501744,2.90695,2071.7,2070.5,5.01949931]
[1617465502144,2.90695,2071.7,2070.4,5.01949969]
[1617465502646,32.3006,2072.3,2070.5,2.90695]
[1617465502948,32.3006,2072.3,2070.3,5.01984228]
[1617465503148,30.0,2072.3,2070.5,2.4111]
[1617465503348,32.0,2072.8,2070.5,2.4111]
[1617465504652,2.90695,2070.7,2070.2,7.92717492]
[1617465505652,2.90695,2070.7,2070.2,2.90695]
[1617465506253,2.90695,2070.7,2070.2,7.92708659]
[1617465506654,2.90695,2070.3,2070.2,7.92708659]
[1617465507054,2.90695,2070.3,2070.2,2.90695]
[1617465507454,2.90695,2070.3,2070.1,5.01857909]
[1617465509858,2.90695,2070.3,2069.9,2.90695]
[1617465510758,2.90695,2070.0,2069.9,2.90695]
[1617465511058,2.3405,2071.7,2069.9,2.90695]
[1617465512560,1.7245,2072.2,2069.9,2.90695]
[1617465512860,2.90695,2070.2,2069.9,2.90695]
[1617465514466,2.90695,2070.2,2068.8,13.4393]
[1617465514764,2.90695,2069.9,2069.6,2.90695]
[1617465514964,2.90695,2069.9,2068.8,13.4393]
[1617465515365,2.90695,2069.9,2068.0,0.02]
[1617465516768,2.90695,2069.9,2069.7,2.90695]
[1617465517168,1.585,2072.3,2069.7,2.90695]
[1617465518268,30.0,2072.5,2069.7,2.90695]
[1617465518669,32.0,2072.4,2070.2,2.90695]
[1617465519069,32.0,2072.4,2069.0,1.5768]
[1617465520871,32.0,2072.4,2067.5,19.01367086]
[1617465521072,32.0,2072.4,2068.0,0.02]
[1617465521572,13.7628,2072.3,2068.0,0.02]
[1617465521870,32.0,2072.2,2068.0,0.02]
[1617465522071,32.9757,2072.2,2068.0,0.02]
[1617465522373,32.0,2071.3,2068.0,0.02]
[1617465522772,2.90695,2068.1,2068.0,2.92695]
[1617465523173,2.90695,2068.1,2068.0,0.02]
[1617465523972,2.4407,2069.3,2068.0,0.02]
[1617465524874,2.4407,2069.3,2069.0,2.90695]
[1617465525075,2.4407,2069.3,2069.0,1.711]
[1617465525373,30.0,2071.1,2069.0,1.711]
[1617465525774,0.02658792,2076.9,2069.0,1.711]
[1617465525775,30.0,2071.5,2069.0,1.711]
[1617465525974,81.9327,2072.7,2069.0,1.711]
[1617465526274,68.21,2072.7,2069.0,1.711]
[1617465526775,30.0,2072.6,2069.8,2.90695]
[1617465526975,30.0,2072.6,2069.8,5.26435]
[1617465527479,55.265,2072.7,2069.8,5.26435]
[1617465528880,13.5145,2073.8,2069.8,5.26435]
[1617465528881,30.0,2073.6,2071.3,2.90695]
[1617465529080,30.0,2073.6,2071.3,5.20235]
[1617465529281,30.0,2073.6,2071.3,2.2954]
[1617465529786,30.0,2073.5,2071.3,2.2954]
[1617465529987,30.0,2073.5,2070.4,1.6614]
[1617465530188,31.6057,2073.5,2069.8,2.3574]
[1617465530587,30.0,2073.3,2069.8,2.3574]
[1617465530788,32.0,2073.3,2070.7,2.90695]
[1617465531588,32.0,2073.3,2069.8,2.3574]
[1617465531788,32.0,2073.3,2069.1,13.0976]
[1617465532888,2.90695,2070.2,2069.1,13.0976]
[1617465533288,2.90695,2070.2,2066.1,13.8983]
[1617465533488,2.90695,2070.2,2068.6,0.02]
[1617465534789,32.3084,2070.1,2068.7,2.90695]
[1617465535391,2.3084,2070.1,2068.7,2.90695]
[1617465535991,30.0,2070.6,2068.7,2.90695]
[1617465536893,2.90695,2069.2,2068.7,2.90695]
[1617465537395,2.90695,2069.2,2067.8,2.1705]
[1617465537594,2.90695,2069.2,2066.9,0.02]
[1617465538495,32.90695,2069.2,2066.9,0.02]
[1617465538695,32.90695,2069.2,2065.3,4.94257529]
[1617465538895,32.2794,2069.2,2067.5,2.90695]
[1617465540496,32.2594,2069.2,2067.5,2.90695]
[1617465540696,29.98,2069.2,2067.5,2.90695]
[1617465540897,2.90695,2068.0,2067.8,2.90695]
[1617465541397,75.7464,2069.1,2067.8,2.90695]
[1617465543001,75.7264,2069.1,2068.1,2.90695]
[1617465544101,52.8503,2069.1,2068.1,2.90695]
[1617465544299,14.2169,2072.6,2068.1,2.90695]
[1617465544600,13.8343,2071.5,2069.6,54.4778]
[1617465544801,13.8343,2071.5,2069.6,56.352]
[1617465545099,13.8343,2071.5,2070.1,4.61825]
[1617465545509,14.2169,2072.6,2070.1,4.61825]
[1617465546800,14.2169,2072.6,2070.1,1.8397]
[1617465547002,44.2169,2072.6,2070.1,1.8397]
[1617465547202,44.2169,2072.6,2070.7,1.8762]
[1617465548911,2.90695,2070.8,2070.7,4.78315]
[1617465549306,2.90695,2070.8,2070.7,1.8762]
[1617465551007,2.90695,2070.8,2070.7,4.78315]
[1617465553209,14.2169,2072.6,2070.7,4.78315]
[1617465553712,2.0,2073.1,2071.2,62.683]
[1617465553911,2.0,2073.1,2071.2,64.5096]
[1617465555014,2.0,2073.1,2070.7,4.78315]
[1617465555015,1.529,2073.1,2071.1,2.90695]
[1617465555816,1.529,2073.1,2068.4,4.95224377]
[1617465556017,1.529,2073.1,2068.1,6.05283007]
[1617465556018,14.0784,2073.0,2068.3,4.95256487]
[1617465556315,2.0,2072.9,2068.5,13.46615799]
[1617465556615,2.0,2072.9,2068.5,13.2958]
[1617465556816,61.4618,2072.5,2068.7,66.9712]
[1617465557017,63.4618,2072.5,2070.3,2.90695]
[1617465557216,65.6743,2072.5,2070.3,2.90695]
[1617465558317,95.6743,2072.5,2070.3,2.90695]
[1617465558518,95.6743,2072.5,2069.8,0.9691]
[1617465558718,95.6743,2072.5,2069.2,0.9701]
[1617465558919,2.90695,2069.3,2069.2,0.9701]
[1617465559820,2.90695,2069.3,2069.2,0.17176463]
[1617465560420,2.90695,2069.3,2068.7,0.17178519]
[1617465560821,2.90695,2069.3,2068.9,0.02]
[1617465561023,2.90695,2069.0,2068.9,0.02]
[1617465561423,2.90695,2069.0,2068.9,0.17178877]
[1617465561826,2.90695,2069.0,2068.8,0.17178773]
[1617465563026,2.90695,2069.0,2068.9,2.90695]
[1617465563227,55.4587,2070.1,2068.9,2.90695]
[1617465563426,55.4587,2070.1,2068.9,3.0787107]
[1617465563828,55.4587,2070.1,2069.0,0.17176322]
[1617465565229,2.90695,2069.3,2069.0,0.17176322]
[1617465566029,2.88695,2069.3,2069.0,0.17176322]
[1617465567133,2.88695,2069.3,2069.2,2.90695]
[1617465567834,2.88695,2069.3,2069.2,3.07834086]
[1617465568031,2.88695,2069.3,2069.2,0.17139086]
[1617465568735,2.88695,2069.3,2067.1,2.0491]
[1617465568736,2.88695,2069.3,2068.6,0.17143487]
[1617465568932,5.30715,2069.3,2068.6,0.17143487]
[1617465569133,2.502,2069.8,2068.5,2.90695]
[1617465569333,2.502,2069.8,2068.7,0.17144092]
[1617465569533,2.502,2069.8,2068.6,0.17144409]
[1617465570135,33.8318,2071.1,2068.6,0.17144409]
[1617465570337,64.3931,2070.9,2068.6,0.17144409]
[1617465570536,2.0,2070.8,2068.6,0.17144409]
[1617465570739,32.0,2070.8,2068.6,0.17144409]
[1617465571138,2.90695,2068.9,2068.6,0.17144409]
[1617465571541,2.90695,2068.9,2068.7,4.99790046]
[1617465572039,2.90695,2068.9,2068.8,0.17178736]
[1617465572642,2.90695,2068.9,2068.6,0.17184011]
[1617465572941,2.90695,2068.9,2068.8,0.17185449]
[1617465573342,2.90695,2068.9,2068.3,0.1718763]
[1617465573642,30.0,2068.8,2067.9,5.00052722]
[1617465573843,30.0,2068.8,2068.0,0.17198231]
[1617465574142,2.0,2068.7,2068.0,0.17198231]
[1617465574341,30.0,2068.6,2068.0,0.17198231]
[1617465574542,30.0,2068.6,2067.5,0.1719951]
[1617465574944,32.0,2068.6,2067.5,0.1719951]
[1617465575144,5.19475,2067.6,2067.5,0.1719951]
[1617465575944,5.19475,2067.6,2067.4,0.17203857]
[1617465576146,5.19475,2067.6,2067.5,0.17204297]
[1617465576545,5.19475,2067.6,2067.4,0.17206192]
[1617465576846,5.17475,2067.6,2067.5,0.17206995]
[1617465577146,35.17475,2067.6,2067.5,0.17206995]
[1617465577345,35.17475,2067.6,2067.1,0.17209247]
[1617465578145,35.17475,2067.6,2067.0,0.17211666]
[1617465578948,37.17475,2067.6,2067.4,7.2881034]
[1617465579145,32.2878,2067.6,2067.4,7.2881034]
[1617465579345,32.2878,2067.6,2067.1,0.17215042]
[1617465579545,32.2878,2067.6,2066.8,8.40941659]
[1617465579745,32.2878,2067.6,2067.2,0.17214949]
[1617465580146,2.2878,2067.6,2066.9,0.16914428]
[1617465580346,30.0,2068.2,2066.9,0.16914428]
[1617465580747,30.0,2068.2,2067.5,6.16686516]
[1617465580946,30.0,2068.2,2067.6,6.16665832]
[1617465581147,2.90695,2067.9,2067.8,5.04544771]
[1617465581347,2.90695,2067.9,2067.7,6.16648678]
[1617465581548,2.90695,2067.9,2067.8,0.17164679]
[1617465581748,2.90695,2067.9,2067.8,6.33786919]
[1617465581946,2.90695,2067.9,2067.8,6.1662224]
[1617465582147,2.90695,2067.9,2067.4,2.3935]
[1617465582847,2.90695,2067.9,2066.5,1.6376]
[1617465583046,2.90695,2066.6,2066.5,1.6376]
[1617465583548,2.90695,2066.6,2066.1,2.90695]
[1617465584348,2.90695,2066.6,2065.7,5.01702503]
[1617465584748,2.90695,2066.6,2065.5,5.01727362]
[1617465585048,2.90695,2065.6,2065.5,5.01727362]
[1617465586149,1.6865,2067.1,2065.5,5.01727362]
[1617465586450,13.794,2068.4,2065.5,2.0156]
[1617465586850,13.794,2068.4,2065.6,5.01711642]
[1617465587049,2.0,2068.3,2065.6,5.01711642]
[1617465587252,2.3881,2067.8,2065.8,2.90695]
[1617465587651,2.3881,2067.8,2065.5,5.01749905]
[1617465587851,2.3881,2067.8,2065.4,5.01746694]
[1617465588352,2.3881,2067.8,2065.5,5.01749768]
[1617465588652,2.3881,2067.8,2065.3,5.01749735]
[1617465589155,2.3881,2067.8,2065.9,2.90695]
[1617465589653,2.3881,2067.8,2065.4,7.44185739]
[1617465589852,32.3881,2067.8,2065.9,5.03092723]
[1617465590052,32.3881,2067.8,2065.8,5.03119458]
[1617465590352,2.3881,2067.8,2065.8,5.03119458]
[1617465590652,2.0,2068.1,2065.7,5.03116694]
[1617465590852,2.0,2068.1,2065.8,5.03117461]
[1617465591152,2.90695,2065.9,2065.8,5.03117461]
[1617465591353,2.90695,2065.9,2065.7,5.03134527]
[1617465592755,2.90695,2065.9,2065.8,25.0]
[1617465598063,14.0649,2067.4,2065.8,25.0]
[1617465599266,2.90695,2065.9,2065.8,27.90695]
[1617465599866,14.0649,2067.4,2065.8,27.90695]
[1617465600467,30.0,2068.3,2065.8,27.90695]
[1617465601070,30.0,2068.3,2065.8,28.86445]
[1617465601267,30.0,2068.3,2066.4,2.90695]
[1617465601268,2.90695,2066.5,2066.4,2.90695]
[1617465601468,2.90695,2066.5,2066.4,5.18075]
[1617465603371,29.98,2068.3,2066.4,5.18075]
[1617465605473,2.90695,2067.4,2067.1,4.94775]
[1617465605774,29.98,2068.3,2067.1,4.94775]
[1617465605973,0.9637,2068.0,2067.1,4.94775]
[1617465606272,29.98,2068.3,2067.1,4.94775]
[1617465606773,29.98,2068.3,2067.1,4.22655]
[1617465607072,30.9492,2068.3,2067.1,4.22655]
[1617465607275,30.9492,2068.3,2067.7,2.90695]
[1617465607475,30.9492,2068.3,2067.7,3.71525]
[1617465607673,30.9492,2068.3,2067.7,3.52375]
[1617465607874,30.9492,2068.3,2067.7,3.09925]
[1617465608078,30.9492,2068.3,2067.7,2.81945]
[1617465608274,30.9492,2068.3,2067.7,2.71455]
[1617465608476,30.9492,2068.3,2067.7,1.50955]
[1617465609078,30.9492,2068.3,2067.7,0.91715]
[1617465609278,30.9492,2068.3,2068.1,2.90695]
[1617465609679,30.9492,2068.3,2068.1,2.42835]
[1617465610079,30.9492,2068.3,2067.1,1.7839]
[1617465610278,11.7107,2068.3,2067.1,1.7839]
[1617465610578,1.1183,2068.3,2066.4,2.2738]
[1617465610778,1.1183,2068.3,2066.5,5.00123864]
[1617465610977,0.9544,2068.6,2066.5,7.11983864]
[1617465611179,0.955,2069.2,2066.5,7.11983864]
[1617465611378,13.4016,2073.5,2068.0,5.27055]
[1617465612279,2.556205,2070.2,2068.0,5.27055]
[1617465612581,3.534305,2070.2,2068.0,5.27055]
[1617465613379,3.534305,2070.2,2069.3,2.90695]
[1617465613580,3.534305,2070.2,2069.3,5.34255]
[1617465614282,21.0196,2073.5,2069.3,5.34255]
[1617465614581,21.0196,2073.5,2069.3,4.67495]
[1617465614881,3.5398,2071.6,2069.3,3.61945]
[1617465615283,2.90695,2069.7,2069.3,2.80255]
[1617465615484,3.85955,2069.7,2069.3,2.80255]
[1617465615885,3.85955,2069.7,2069.3,2.08465]
[1617465616285,0.9589,2069.8,2069.3,2.08465]
[1617465616785,3.5398,2071.6,2069.3,2.08465]
[1617465617386,3.5398,2071.6,2069.6,2.90695]
[1617465617587,3.5398,2071.6,2069.3,2.08465]
[1617465618186,3.5398,2071.6,2069.3,0.91005]
[1617465618787,3.5398,2071.6,2068.1,4.99654512]
[1617465618987,12.0,2070.1,2068.1,4.99654512]
[1617465619191,12.962,2070.1,2068.2,4.99654302]
[1617465619387,12.962,2070.1,2069.6,2.90695]
[1617465619988,12.962,2070.1,2069.6,4.89395]
[1617465620489,7.6493,2070.1,2069.6,4.89395]
[1617465620991,6.6873,2070.1,2069.6,4.89395]
[1617465621190,2.6004,2070.1,2069.6,4.89395]
[1617465621390,2.6004,2070.1,2070.0,2.90695]
[1617465621590,2.6004,2070.1,2070.0,2.72085]
[1617465622391,3.5398,2071.6,2070.0,2.72085]
[1617465622591,3.5329,2071.6,2070.0,2.72085]
[1617465622893,0.9619,2071.6,2070.0,2.72085]
[1617465623392,0.9619,2071.6,2070.9,4.69105]
[1617465623592,0.9619,2071.6,2070.9,2.60645]
[1617465624494,0.9619,2071.6,2070.9,0.82235]
[1617465624694,0.0001,2071.6,2070.9,2.46745]
[1617465624895,0.0001,2071.6,2070.9,2.05355]
[1617465625397,2.90695,2071.0,2070.9,2.05355]
[1617465626397,0.0001,2071.6,2070.9,2.05355]
[1617465627397,2.90695,2071.0,2070.9,2.05355]
[1617465627597,0.971,2072.8,2070.9,2.05355]
[1617465629398,0.971,2072.8,2072.5,2.90695]
[1617465630201,0.971,2072.8,2072.5,2.70395]
[1617465630500,0.971,2072.8,2072.5,1.53835]
[1617465630698,0.9626,2073.4,2072.5,1.53835]
[1617465631200,0.9626,2073.4,2072.5,3.72285]
[1617465631400,2.90695,2073.1,2073.0,2.90695]
[1617465632201,2.90695,2073.1,2073.0,2.42975]
[1617465632401,0.9626,2073.4,2073.0,2.42975]
[1617465632603,0.9626,2073.4,2073.0,4.25525]
[1617465633805,13.6511,2075.1,2073.0,4.08615]
[1617465635505,3.87145,2074.3,2073.0,1.8255]
[1617465635708,3.87145,2074.3,2073.9,2.0485]
[1617465635905,3.87145,2074.3,2073.0,1.8255]
[1617465637907,3.87145,2074.3,2071.6,2.0029]
[1617465638106,3.87145,2074.3,2070.3,4.94672995]
[1617465639108,3.87145,2074.3,2070.1,6.04600327]
[1617465639109,3.87145,2074.3,2070.0,4.94752132]
[1617465639408,2.90695,2073.0,2072.4,2.90695]
[1617465639609,3.88465,2073.0,2072.4,2.90695]
[1617465639808,3.88465,2073.0,2069.9,6.65445787]
[1617465640009,3.88465,2073.0,2069.9,1.7068]
[1617465640808,13.1485,2072.9,2069.3,4.94910712]
[1617465641208,13.1485,2072.9,2069.1,6.0489087]
[1617465641209,13.1485,2072.9,2069.1,4.94959788]
[1617465641409,13.1485,2072.9,2071.5,2.90695]
[1617465642209,13.1485,2072.9,2068.8,0.9686]
[1617465642210,13.1485,2072.9,2068.8,5.91891143]
[1617465642408,13.1485,2072.9,2068.8,4.95031143]
[1617465642610,13.1485,2072.9,2068.7,4.95069]
[1617465642811,13.1485,2072.9,2068.4,4.950976]
[1617465643210,13.1485,2072.9,2068.3,4.95161953]
[1617465643409,13.1485,2072.9,2070.3,2.90695]
[1617465643613,13.1485,2072.9,2068.1,4.95192192]